fUST/lending_fUST_20240917
["ID","MTS","AMOUNT","RATE_DAILY","PERIOD"]
[338399395,1726584640830,-436.328826,0.0002013,2]
[338399396,1726584640839,-507.721161,0.0002013,2]
[338399397,1726584640849,-153.220905,0.0002013,2]
[338399398,1726584640859,-169.240387,0.0002013,2]
[338399399,1726584640868,-169.240387,0.0002013,2]
[338399400,1726584640878,-437.743406,0.0002013,2]
[338399401,1726584640891,-169.240387,0.0002013,2]
[338399402,1726584640901,-183.865086,0.0002013,2]
[338399403,1726584640911,-169.240387,0.0002013,2]
[338399404,1726584640921,-151.0,0.00020155,2]
[338399405,1726584640931,-160.0,0.0002022,11]
[338399406,1726584640941,-1677.93762312,0.00020257,2]
[338399407,1726584640952,-4462.44952343,0.0002029,3]
[338399408,1726584640963,-150.112236,0.000203,5]
[338399409,1726584640973,-203.41875347,0.000203,2]
[338399410,1726584640983,-14764.21257152,0.00020337,3]
[338399411,1726584640995,-582.04603108,0.00020337,3]
[338399412,1726584641144,966.29,0.00024,60]
[338399413,1726584641391,500.0,0.00024,60]
[338399414,1726584642648,976.41,0.00024,60]
[338399444,1726584643528,-2503.5394911,0.00020337,3]
[338399445,1726584643537,-8656.37417942,0.00020347,3]
[338399446,1726584643595,-268.52486744,0.00020347,3]
[338399448,1726584643605,-151.0,0.00020347,2]
[338399449,1726584643615,-254.431996,0.00020347,2]
[338399450,1726584643625,-151.0,0.00020347,2]
[338399451,1726584643640,-219.074005,0.00020347,2]
[338399452,1726584643650,-219.074005,0.00020347,2]
[338399453,1726584643659,-4462.44952343,0.0002036,3]
[338399454,1726584643668,-151.0,0.0002037,2]
[338399455,1726584643677,-151.0,0.0002037,2]
[338399456,1726584643687,-219.074005,0.0002037,2]
[338399457,1726584643696,-219.074005,0.0002037,2]
[338399458,1726584643705,-598.5,0.00020373,2]
[338399459,1726584643714,-590.36892812,0.00020373,2]
[338399460,1726584643723,-500.0,0.00020373,2]
[338399461,1726584643733,-230.33791163,0.00020373,2]
[338399462,1726584643742,-500.0,0.00020373,2]
[338399463,1726584643752,-500.0,0.00020373,2]
[338399464,1726584643761,-543.54638897,0.00020373,2]
[338399465,1726584643771,-332.62557684,0.00020373,2]
[338399466,1726584643780,-500.0,0.00020373,2]
[338399467,1726584643789,-500.0,0.00020373,2]
[338399468,1726584643798,-151.0,0.00020376,2]
[338399469,1726584643807,-23313.27885447,0.00020377,2]
[338399470,1726584643816,-4462.44952343,0.0002039,3]
[338399471,1726584643825,-13387.3485703,0.0002039,3]
[338399472,1726584643834,-7283.54415913,0.000204,5]
[338399473,1726584643846,-419.20180622,0.000204,5]
[338399474,1726584644596,500.0,0.00024,60]
[338399486,1726584646565,500.0,0.00024,60]
[338399488,1726584646595,-150.0,0.0001895,2]
[338399490,1726584646605,-360.6829829,0.00019999,2]
[338399491,1726584646615,-1075.5170171,0.000204,5]
[338399492,1726584646627,-2454.27863872,0.000204,5]
[338399493,1726584646637,-1757.91124783,0.000204,2]
[338399495,1726584646649,-39791.63875217,0.000204,2]
[338399496,1726584646658,-92546.44,0.000204,2]
[338399497,1726584646668,-283409.77927174,0.000204,2]
[338399498,1726584646679,-263.63845362,0.000204,2]
[338399499,1726584646702,-145345.08227464,0.000204,2]
[338399500,1726584646712,-150.112233,0.000204,2]
[338399501,1726584646722,-150.112233,0.000204,3]
[338399502,1726584646732,-150.112233,0.000204,3]
[338399503,1726584646743,-153.820298,0.000204,3]
[338399504,1726584646757,-151.0,0.000204,2]
[338399505,1726584646766,-151.0,0.000204,2]
[338399506,1726584646777,-260.061806,0.000204,2]
[338399507,1726584646787,-151.0,0.000204,2]
[338399508,1726584646797,-151.0,0.000204,2]
[338399509,1726584646806,-165.170115,0.000204,2]
[338399510,1726584646815,-165.170115,0.000204,2]
[338399511,1726584646825,-165.170115,0.000204,2]
[338399512,1726584646834,-165.170115,0.000204,2]
[338399513,1726584646843,-151.0,0.000204,2]
[338399514,1726584646853,-151.0,0.000204,2]
[338399515,1726584646862,-151.0,0.000204,2]
[338399516,1726584646871,-290.504959,0.000204,2]
[338399517,1726584646880,-3634.09,0.000204,2]
[338399518,1726584646891,-2657.380511,0.000204,2]
[338399519,1726584646901,-2657.380511,0.000204,2]
[338399520,1726584646910,-2657.380511,0.000204,2]
[338399521,1726584646919,-2657.380511,0.000204,2]
[338399522,1726584646928,-151.0,0.000204,2]
[338399523,1726584646937,-151.0,0.000204,2]
[338399524,1726584646948,-246.919039,0.000204,2]
[338399525,1726584646957,-150.112233,0.000204,2]
[338399526,1726584646967,-261.134875,0.000204,2]
[338399527,1726584646976,-349.68196,0.000204,2]
[338399528,1726584646986,-349.68196,0.000204,2]
[338399529,1726584646995,-261.134875,0.000204,2]
[338399530,1726584647005,-261.134875,0.000204,2]
[338399531,1726584647014,-349.68196,0.000204,2]
[338399532,1726584647024,-349.68196,0.000204,2]
[338399533,1726584647033,-151.0,0.000204,2]
[338399534,1726584647043,-151.0,0.000204,2]
[338399535,1726584647052,-151.0,0.000204,2]
[338399536,1726584647061,-6208.47,0.000204,2]
[338399537,1726584647070,-239.853862,0.000204,2]
[338399538,1726584647079,-219.074005,0.000204,2]
[338399539,1726584647088,-219.074005,0.000204,2]
[338399540,1726584647097,-219.074005,0.000204,2]
[338399541,1726584647106,-219.074005,0.000204,2]
[338399542,1726584647115,-151.0,0.000204,2]
[338399543,1726584647124,-151.0,0.000204,2]
[338399544,1726584647136,-151.0,0.000204,2]
[338399545,1726584647145,-151.0,0.000204,2]
[338399546,1726584647154,-151.0,0.000204,2]
[338399547,1726584647164,-592.316226,0.000204,2]
[338399548,1726584647177,-592.316226,0.000204,2]
[338399549,1726584647187,-151.0,0.000204,2]
[338399550,1726584647196,-151.0,0.000204,2]
[338399551,1726584647205,-151.0,0.000204,2]
[338399552,1726584647214,-592.316226,0.000204,2]
[338399553,1726584647224,-592.316226,0.000204,2]
[338399554,1726584647234,-151.0,0.000204,2]
[338399555,1726584647243,-151.0,0.000204,2]
[338399556,1726584647253,-160.0,0.00020422,12]
[338399557,1726584647262,-165.170115,0.0002051,2]
[338399558,1726584647271,-165.170115,0.0002051,2]
[338399559,1726584647281,-151.0,0.0002051,2]
[338399560,1726584647291,-2657.380511,0.0002051,2]
[338399561,1726584647507,-2657.380511,0.0002051,2]
[338399562,1726584647523,-151.0,0.0002051,2]
[338399563,1726584647532,-261.134875,0.0002051,2]
[338399564,1726584647541,-349.68196,0.0002051,2]
[338399565,1726584647551,-261.134875,0.0002051,2]
[338399566,1726584647560,-349.68196,0.0002051,2]
[338399567,1726584647570,-206.753519,0.0002051,2]
[338399568,1726584647579,-219.074005,0.0002051,2]
[338399569,1726584647588,-219.074005,0.0002051,2]
[338399570,1726584647598,-151.0,0.0002051,2]
[338399571,1726584647607,-592.316226,0.0002051,2]
[338399572,1726584647617,-249.689362,0.0002051,2]
[338399573,1726584647627,-151.0,0.0002051,2]
[338399574,1726584647639,-592.316226,0.0002051,2]
[338399575,1726584647656,-151.0,0.0002051,2]
[338399576,1726584647664,-500.0,0.0002051,30]
[338399577,1726584647674,-500.0,0.0002051,30]
[338399578,1726584647683,-500.0,0.0002051,30]
[338399579,1726584647692,-500.0,0.0002051,30]
[338399580,1726584647701,-500.0,0.0002051,30]
[338399581,1726584647710,-500.0,0.0002051,30]
[338399582,1726584647719,-500.0,0.0002051,30]
[338399583,1726584647728,-500.0,0.0002051,30]
[338399584,1726584647738,-500.0,0.0002051,30]
[338399585,1726584647747,-668.9910431,0.0002051,30]
[338399586,1726584647757,-500.0,0.0002051,30]
[338399587,1726584647766,-626.83718921,0.0002051,30]
[338399588,1726584647775,-636.70489779,0.0002051,30]
[338399589,1726584647784,-1300.0,0.0002051,30]
[338399590,1726584647794,-1300.0,0.0002051,30]
[338399591,1726584647803,-1300.0,0.0002051,30]
[338399592,1726584647812,-1300.0,0.0002051,30]
[338399593,1726584647822,-2700.0,0.0002051,30]
[338399594,1726584647832,-1300.0,0.0002051,30]
[338399595,1726584647842,-2700.0,0.0002051,30]
[338399596,1726584647852,-1300.0,0.0002051,30]
[338399597,1726584647862,-2700.0,0.0002051,30]
[338399598,1726584647872,-1300.0,0.0002051,30]
[338399599,1726584647882,-2700.0,0.0002051,30]
[338399600,1726584647891,-1300.0,0.0002051,30]
[338399601,1726584647900,-2700.0,0.0002051,30]
[338399602,1726584647910,-1083.81331135,0.0002051,30]
[338399603,1726584647923,-216.18668865,0.0002051,30]
[338399604,1726584647932,-248.19794916,0.0002051,30]
[338399605,1726584647943,-664.65301874,0.0002051,30]
[338399606,1726584649711,749.21,0.00024,60]
[338399607,1726584650501,616.59,0.00024,60]
[338399608,1726584652018,500.0,0.00024,60]
[338399609,1726584652715,500.0,0.00024,60]
[338399610,1726584653150,500.0,0.00024,60]
[338399611,1726584653483,500.0,0.00024,60]
[338399612,1726584659125,500.0,0.00024,60]
[338399613,1726584660940,7847.76,0.00024,60]
[338399614,1726584662685,500.0,0.00024,60]
[338399615,1726584663038,1100.91,0.00024,60]
[338399616,1726584663233,500.0,0.00024,60]
[338399617,1726584663302,597.2,0.00024,60]
[338399618,1726584663854,500.0,0.00024,60]
[338399619,1726584664218,500.0,0.00024,60]
[338399620,1726584667682,500.0,0.00024,60]
[338399621,1726584667836,500.0,0.00024,60]
[338399622,1726584668873,500.0,0.00024,60]
[338399623,1726584670570,500.0,0.00024,60]
[338399624,1726584670960,502.9,0.00024,60]
[338399625,1726584671759,607.59,0.00024,60]
[338399626,1726584673298,662.04,0.00024,60]
[338399627,1726584673490,1433.05,0.00024,60]
[338399628,1726584673801,500.0,0.00024,60]
[338399629,1726584674029,564.3,0.00024,60]
[338399630,1726584674289,1019.31,0.00024,60]
[338399631,1726584676033,1181.21,0.00024,60]
[338399632,1726584676098,500.0,0.00024,60]
[338399633,1726584679316,500.0,0.00024,60]
[338399634,1726584682299,546.17589861,0.00024,60]
[338399635,1726584683085,500.0,0.00024,60]
[338399636,1726584683336,1807.51,0.00024,60]
[338399637,1726584684276,500.0,0.00024,60]
[338399638,1726584685782,1604.49,0.00024,60]
[338399639,1726584686130,500.0,0.00024,60]
[338399640,1726584686262,621.84319277,0.00024,60]
[338399641,1726584686874,568.79,0.00024,60]
[338399642,1726584687101,4682.39,0.00024,60]
[338399643,1726584687628,500.0,0.00024,60]
[338399644,1726584689134,3701.58,0.00024,60]
[338399645,1726584691085,500.0,0.00024,60]
[338399646,1726584691736,500.0,0.00024,60]
[338399647,1726584692514,500.0,0.00024,60]
[338399648,1726584693668,500.0,0.00024,60]
[338399649,1726584694425,500.0,0.00024,60]
[338399650,1726584695044,500.0,0.00024,60]
[338399651,1726584695301,500.0,0.00024,60]
[338399652,1726584695368,2480.13,0.00024,60]
[338399653,1726584695430,500.0,0.00024,60]
[338399654,1726584695590,863.73,0.00024,60]
[338399655,1726584696070,618.62,0.00024,60]
[338399656,1726584697161,500.0,0.00024,60]
[338399657,1726584700224,1701.96,0.00024,60]
[338399658,1726584701279,821.63,0.00024,60]
[338399659,1726584702571,1729.51,0.00024,60]
[338399660,1726584704455,500.0,0.00024,60]
[338399661,1726584705044,556.39,0.00024,60]
[338399662,1726584705211,2229.53,0.00024,60]
[338399663,1726584705272,500.0,0.00024,60]
[338399664,1726584705778,1811.89,0.00024,60]
[338399665,1726584706231,3230.03,0.00024,60]
[338399666,1726584706520,1450.9,0.00024,60]
[338399667,1726584710437,500.0,0.00024,60]
[338399668,1726584712656,500.0,0.00024,60]
[338399669,1726584713769,1418.31,0.00024,60]
[338399670,1726584714681,622.57,0.00024,60]
[338399671,1726584715062,500.0,0.00024,60]
[338399672,1726584715136,799.29,0.00024,60]
[338399673,1726584715413,1309.54,0.00024,60]
[338399674,1726584715523,500.0,0.00024,60]
[338399675,1726584715700,500.0,0.00024,60]
[338399676,1726584716593,1487.25,0.00024,60]
[338399677,1726584716656,1521.7,0.00024,60]
[338399678,1726584718272,500.0,0.00024,60]
[338399679,1726584719517,500.0,0.00024,60]
[338399680,1726584719683,518.09331655,0.00024,60]
[338399681,1726584719813,500.0,0.00024,60]
[338399682,1726584720441,500.0,0.00024,60]
[338399683,1726584721135,765.36,0.00024,60]
[338399684,1726584721627,500.0,0.00024,60]
[338399685,1726584723518,500.0,0.00024,60]
[338399686,1726584725023,500.0,0.00024,60]
[338399687,1726584725301,1062.28,0.00024,60]
[338399688,1726584725385,500.0,0.00024,60]
[338399689,1726584726118,514.53,0.00024,60]
[338399690,1726584727757,1753.33,0.00024,60]
[338399691,1726584727970,1085.58,0.00024,60]
[338399692,1726584730278,681.44,0.00024,60]
[338399693,1726584732462,500.0,0.00024,60]
[338399694,1726584732637,2149.84,0.00024,60]
[338399695,1726584734727,711.89,0.00024,60]
[338399696,1726584735588,500.0,0.00024,60]
[338399697,1726584736857,587.69,0.00024,60]
[338399698,1726584738467,500.0,0.00024,60]
[338399699,1726584739198,1171.89,0.00024,60]
[338399700,1726584739307,500.0,0.00024,60]
[338399701,1726584739505,250.0,0.00024,60]
[338399702,1726584740154,1436.54,0.00024,60]
[338399703,1726584740832,919.0,0.00024,60]
[338399704,1726584741022,955.22,0.00024,60]
[338399705,1726584742926,504.67109507,0.00024,60]
[338399706,1726584743274,1671.23,0.00024,60]
[338399707,1726584745057,500.0,0.00024,60]
[338399708,1726584745173,1239.59,0.00024,60]
[338399709,1726584745429,684.59,0.00024,60]
[338399710,1726584745516,500.0,0.00024,60]
[338399711,1726584748754,532.84241754,0.00024,60]
[338399712,1726584749381,500.0,0.00024,60]
[338399713,1726584750507,500.0,0.00024,60]
[338399714,1726584750994,898.76,0.00024,60]
[338399715,1726584751811,1035.0,0.00024,60]
[338399716,1726584752212,500.0,0.00024,60]
[338399717,1726584752307,623.74,0.00024,60]
[338399719,1726584753522,1788.23,0.00024,60]
[338399720,1726584754964,500.0,0.00024,60]
[338399721,1726584756336,500.0,0.00024,60]
[338399722,1726584756548,500.0,0.00024,60]
[338399723,1726584758732,233.35779891,0.00024,60]
[338399724,1726584759110,500.0,0.00024,60]
[338399725,1726584759515,7012.8,0.00024,60]
[338399726,1726584759680,500.0,0.00024,60]
[338399727,1726584760033,500.0,0.00024,60]
[338399728,1726584760188,500.0,0.00024,60]
[338399729,1726584761189,677.9,0.00024,60]
[338399730,1726584761252,511.25,0.00024,60]
[338399731,1726584761331,500.0,0.00024,60]
[338399732,1726584762146,500.0,0.00024,60]
[338399733,1726584762631,500.0,0.00024,60]
[338399734,1726584763304,1692.24,0.00024,60]
[338399735,1726584764534,568.13671525,0.00024,60]
[338399736,1726584765099,500.0,0.00024,60]
[338399737,1726584765992,500.0,0.00024,60]
[338399738,1726584766677,500.0,0.00024,60]
[338399739,1726584766789,1783.08,0.00024,60]
[338399740,1726584768893,500.0,0.00024,60]
[338399741,1726584770541,500.0,0.00024,60]
[338399742,1726584771572,500.0,0.00024,60]
[338399743,1726584772116,1567.12,0.00024,60]
[338399744,1726584773338,591.92,0.00024,60]
[338399745,1726584774015,500.0,0.00024,60]
[338399746,1726584774290,581.63,0.00024,60]
[338399747,1726584774376,620.15,0.00024,60]
[338399748,1726584774539,816.95,0.00024,60]
[338399749,1726584775244,572.82,0.00024,60]
[338399750,1726584775315,500.0,0.00024,60]
[338399751,1726584775587,837.79,0.00024,60]
[338399752,1726584776618,1046.95,0.00024,60]
[338399753,1726584777560,1140.98,0.00024,60]
[338399754,1726584778044,1779.79,0.00024,60]
[338399755,1726584779160,1353.25,0.00024,60]
[338399756,1726584779332,1902.34,0.00024,60]
[338399757,1726584780431,500.0,0.00024,60]
[338399758,1726584781979,1299.11,0.00024,60]
[338399759,1726584782036,1884.57,0.00024,60]
[338399760,1726584783641,500.0,0.00024,60]
[338399761,1726584783947,500.0,0.00024,60]
[338399762,1726584784817,500.0,0.00024,60]
[338399763,1726584785813,596.25,0.00024,60]
[338399764,1726584793284,500.0,0.00024,60]
[338399765,1726584793558,500.0,0.00024,60]
[338399766,1726584793761,500.0,0.00024,60]
[338399767,1726584794321,500.0,0.00024,60]
[338399768,1726584795264,500.0,0.00024,60]
[338399769,1726584796964,500.0,0.00024,60]
[338399770,1726584797895,500.0,0.00024,60]
[338399771,1726584799718,1923.84,0.00024,60]
[338399772,1726584799780,500.0,0.00024,60]
[338399773,1726584799953,500.0,0.00024,60]
[338399774,1726584800167,500.0,0.00024,60]
[338399775,1726584801868,500.0,0.00024,60]
[338399776,1726584803168,500.0,0.00024,60]
[338399777,1726584805355,1523.46,0.00024,60]
[338399778,1726584805680,946.99,0.00024,60]
[338399779,1726584807032,592.41,0.00024,60]
[338399780,1726584808015,2288.34,0.00024,60]
[338399781,1726584808097,500.0,0.00024,60]
[338399782,1726584808207,1828.05,0.00024,60]
[338399783,1726584808305,500.0,0.00024,60]
[338399784,1726584808616,500.0,0.00024,60]
[338399785,1726584808679,500.0,0.00024,60]
[338399786,1726584809369,500.0,0.00024,60]
[338399787,1726584809428,773.68,0.00024,60]
[338399788,1726584810126,1115.53,0.00024,60]
[338399789,1726584810353,678.15,0.00024,60]
[338399790,1726584810407,668.57,0.00024,60]
[338399791,1726584810568,500.0,0.00024,60]
[338399792,1726584811042,500.0,0.00024,60]
[338399793,1726584811900,500.0,0.00024,60]
[338399794,1726584811990,349.46985459,0.00024,60]
[338399795,1726584812068,500.0,0.00024,60]
[338399796,1726584814327,500.0,0.00024,60]
[338399797,1726584815395,979.36,0.00024,60]
[338399798,1726584816505,554.35,0.00024,60]
[338399799,1726584816632,500.0,0.00024,60]
[338399800,1726584818824,500.0,0.00024,60]
[338399801,1726584818891,1099.44,0.00024,60]
[338399802,1726584819051,500.0,0.00024,60]
[338399803,1726584819625,975.83,0.00024,60]
[338399804,1726584820997,500.0,0.00024,60]
[338399805,1726584821737,500.0,0.00024,60]
[338399807,1726584822623,1581.31,0.00024,60]
[338399808,1726584823938,1000.0,0.00024,60]
[338399809,1726584824012,2353.11,0.00024,60]
[338399810,1726584824094,626.38690346,0.00024,60]
[338399811,1726584825261,317.11802418,0.00024,60]
[338399812,1726584827241,1175.35,0.00024,60]
[338399813,1726584827587,500.0,0.00024,60]
[338399814,1726584827672,606.78,0.00024,60]
[338399815,1726584828056,500.0,0.00024,60]
[338399816,1726584828184,500.0,0.00024,60]
[338399817,1726584828634,500.0,0.00024,60]
[338399818,1726584831253,500.0,0.00024,60]
[338399819,1726584831373,500.0,0.00024,60]
[338399820,1726584832638,500.0,0.00024,60]
[338399822,1726584833707,500.0,0.00024,60]
[338399823,1726584837281,799.74,0.00024,60]
[338399824,1726584837484,1584.65,0.00024,60]
[338399825,1726584837891,500.0,0.00024,60]
[338399826,1726584837984,2331.04,0.00024,60]
[338399827,1726584840240,8390.43,0.00024,60]
[338399828,1726584840338,556.52,0.00024,60]
[338399829,1726584840770,746.09,0.00024,60]
[338399830,1726584841644,2606.73,0.00024,60]
[338399831,1726584842662,2586.67,0.00024,60]
[338399832,1726584843684,939.89,0.00024,60]
[338399833,1726584845775,1196.79,0.00024,60]
[338399834,1726584845923,500.0,0.00024,60]
[338399835,1726584848691,500.0,0.00024,60]
[338399836,1726584849701,500.0,0.00024,60]
[338399837,1726584851330,792.88,0.00024,60]
[338399838,1726584851484,1175.91,0.00024,60]
[338399839,1726584851567,2634.66,0.00024,60]
[338399840,1726584851771,2240.52,0.00024,60]
[338399841,1726584851872,514.99,0.00024,60]
[338399842,1726584852650,500.0,0.00024,60]
[338399843,1726584854374,578.35833366,0.00024,60]
[338399844,1726584854613,530.15,0.00024,60]
[338399845,1726584855183,500.0,0.00024,60]
[338399846,1726584855245,500.0,0.00024,60]
[338399847,1726584856237,500.0,0.00024,60]
[338399848,1726584860555,500.0,0.00024,60]
[338399849,1726584860802,500.0,0.00024,60]
[338399850,1726584862130,2098.61,0.00024,60]
[338399851,1726584862845,500.0,0.00024,60]
[338399852,1726584863844,1379.24,0.00024,60]
[338399853,1726584864163,500.0,0.00024,60]
[338399854,1726584865571,931.47,0.00024,60]
[338399855,1726584865631,837.08,0.00024,60]
[338399856,1726584867053,500.0,0.00024,60]
[338399857,1726584867324,510.87,0.00024,60]
[338399858,1726584867385,500.0,0.00024,60]
[338399859,1726584867861,2562.14,0.00024,60]
[338399860,1726584871214,1337.03,0.00024,60]
[338399861,1726584874581,271.53000499,0.00024,60]
[338399862,1726584875434,500.0,0.00024,60]
[338399863,1726584875983,500.0,0.00024,60]
[338399864,1726584876586,500.0,0.00024,60]
[338399866,1726584876978,1548.5,0.00024,60]
[338399867,1726584879715,500.0,0.00024,60]
[338399868,1726584882979,946.03,0.00024,60]
[338399869,1726584883626,640.41,0.00024,60]
[338399870,1726584884307,500.0,0.00024,60]
[338399871,1726584885931,1127.09,0.00024,60]
[338399872,1726584889872,500.0,0.00024,60]
[338399873,1726584891312,500.0,0.00024,60]
[338399874,1726584891490,794.09,0.00024,60]
[338399875,1726584892437,500.0,0.00024,60]
[338399876,1726584892855,500.0,0.00024,60]
[338399877,1726584895457,520.42,0.00024,60]
[338399878,1726584899214,926.03,0.00024,60]
[338399879,1726584900174,500.0,0.00024,60]
[338399880,1726584901964,854.94,0.00024,60]
[338399881,1726584902457,2606.95,0.00024,60]
[338399882,1726584902644,4487.29,0.00024,60]
[338399883,1726584903339,358.08029643,0.00024,60]
[338399884,1726584903511,647.53,0.00024,60]
[338399885,1726584904068,500.0,0.00024,60]
[338399886,1726584904411,500.0,0.00024,60]
[338399887,1726584906093,500.0,0.00024,60]
[338399888,1726584907845,455.07949032,0.00024,60]
[338399889,1726584909045,717.99,0.00024,60]
[338399890,1726584910024,500.0,0.00024,60]
[338399891,1726584910712,500.0,0.00024,60]
[338399892,1726584911513,500.0,0.00024,60]
[338399893,1726584912140,500.0,0.00024,60]
[338399894,1726584913561,506.09,0.00024,60]
[338399895,1726584914711,227.01541615,0.00024,60]
[338399896,1726584915401,500.0,0.00024,60]
[338399897,1726584921267,500.0,0.00024,60]
[338399898,1726584922127,7520.77,0.00024,60]
[338399899,1726584923239,790.71,0.00024,60]
[338399900,1726584924895,500.0,0.00024,60]
[338399901,1726584924984,1379.85,0.00024,60]
[338399903,1726584926507,1467.7,0.00024,60]
[338399904,1726584927714,1359.21,0.00024,60]
[338399905,1726584929150,600.49,0.00024,60]
[338399906,1726584930812,500.0,0.00024,60]
[338399907,1726584931447,1632.12,0.00024,60]
[338399908,1726584931734,1659.87,0.00024,60]
[338399909,1726584935090,500.0,0.00024,60]
[338399910,1726584935414,2136.64,0.00024,60]
[338399911,1726584935976,2780.99,0.00024,60]
[338399912,1726584936051,1003.4,0.00024,60]
[338399913,1726584937269,500.0,0.00024,60]
[338399914,1726584938086,1187.97,0.00024,60]
[338399915,1726584938489,1781.46,0.00024,60]
[338399916,1726584940160,500.0,0.00024,60]
[338399917,1726584940653,500.0,0.00024,60]
[338399919,1726584944752,3271.96,0.00024,60]
[338399920,1726584945975,500.0,0.00024,60]
[338399921,1726584947023,500.0,0.00024,60]
[338399922,1726584947684,590.9,0.00024,60]
[338399923,1726584953741,500.0,0.00024,60]
[338399924,1726584953917,500.0,0.00024,60]
[338399925,1726584955122,500.0,0.00024,60]
[338399926,1726584956454,718.78,0.00024,60]
[338399927,1726584956931,1373.34,0.00024,60]
[338399929,1726584957227,654.17,0.00024,60]
[338399930,1726584957458,500.0,0.00024,60]
[338399931,1726584957659,1732.19,0.00024,60]
[338399932,1726584959064,500.0,0.00024,60]
[338399933,1726584961183,1601.6,0.00024,60]
[338399934,1726584963604,500.0,0.00024,60]
[338399935,1726584966413,1239.09,0.00024,60]
[338399936,1726584966790,500.0,0.00024,60]
[338399937,1726584967342,500.0,0.00024,60]
[338399938,1726584967800,500.0,0.00024,60]
[338399939,1726584967927,1657.44,0.00024,60]
[338399940,1726584968004,1736.39,0.00024,60]
[338399941,1726584968081,617.44,0.00024,60]
[338399942,1726584968676,500.0,0.00024,60]
[338399943,1726584970051,500.0,0.00024,60]
[338399944,1726584970693,1713.72,0.00024,60]
[338399945,1726584971588,508.59580559,0.00024,60]